fUSD/lending_fUSD_20260528
["ID","MTS","AMOUNT","RATE_DAILY","PERIOD"]
[423207272,1779930639000,-152.0,0.00015,2]
[423207277,1779930639000,-1510.77733,0.00015,2]
[423207279,1779930639000,-1510.77733,0.00015,2]
[423207285,1779930639000,-2000.0,0.00015335,2]
[423207280,1779930639000,-199.0,0.00015,2]
[423207278,1779930639000,-1510.77733,0.00015,2]
[423207276,1779930639000,-154.0,0.00015,2]
[423207282,1779930639000,-1544.0,0.00015,2]
[423207286,1779930639000,-426.36,0.00015474,2]
[423207281,1779930639000,-200.0,0.00015,2]
[423207283,1779930639000,-1544.0,0.00015,2]
[423207287,1779930639000,-660.92,0.000156,2]
[423207284,1779930639000,-200.0,0.0001515,2]
[423207297,1779930639000,-1069.31,0.00016138,2]
[423207302,1779930639000,-189.98188798,0.000168,2]
[423207291,1779930639000,-156.21,0.00015836,2]
[423207296,1779930639000,-315.0,0.00016,2]
[423207294,1779930639000,-300.0,0.00016,2]
[423207300,1779930639000,-12470.27195521,0.000165,2]
[423207299,1779930639000,-6616.0719566,0.000165,2]
[423207295,1779930639000,-1000.0,0.00016,2]
[423207298,1779930639000,-700.0,0.00016248,2]
[423207288,1779930639000,-703.77,0.000156,2]
[423207292,1779930639000,-166.92,0.00015925,2]
[423207290,1779930639000,-2603.31,0.000158,2]
[423207289,1779930639000,-1639.13,0.000156,2]
[423207293,1779930639000,-215.46156935,0.00016,3]
[423207378,1779930640000,-154.5,0.00020337,2]
[423207393,1779930640000,-180.0,0.00021,2]
[423207386,1779930640000,-2236.95670847,0.00020524,2]
[423207377,1779930640000,-282.0,0.0002,2]
[423207385,1779930640000,-1536.04360648,0.00020524,2]
[423207372,1779930640000,-2157.14243826,0.00019976,2]
[423207367,1779930640000,-151.0,0.00019428,2]
[423207374,1779930640000,-507.0,0.0002,2]
[423207371,1779930640000,-1481.2378076,0.00019976,2]
[423207375,1779930640000,-180.0,0.0002,2]
[423207373,1779930640000,-400.0,0.0002,2]
[423207379,1779930640000,-151.0,0.00020381,2]
[423207376,1779930640000,-1990.46,0.0002,2]
[423207388,1779930640000,-426.36,0.00020632,2]
[423207406,1779930640000,-5000.0,0.00021918,2]
[423207387,1779930640000,-167.91286325,0.0002058,2]
[423207384,1779930640000,-187.78006524,0.00020524,2]
[423207381,1779930640000,-2000.0,0.00020447,2]
[423207383,1779930640000,-168.5,0.00020511,2]
[423207389,1779930640000,-13841.16999438,0.00021,2]
[423207397,1779930640000,-194.72792766,0.00021072,2]
[423207395,1779930640000,-282.0,0.00021,2]
[423207399,1779930640000,-1592.87721992,0.00021072,2]
[423207400,1779930640000,-2319.72410669,0.00021072,2]
[423207401,1779930640000,-166.92,0.00021233,2]
[423207402,1779930640000,-201.93286098,0.0002162,2]
[423207403,1779930640000,-1651.81367706,0.0002162,2]
[423207370,1779930640000,-181.08010149,0.00019976,2]
[423207391,1779930640000,-507.0,0.00021,2]
[423207369,1779930640000,-202.60424829,0.00019976,2]
[423207337,1779930640000,-175.98747583,0.00019428,2]
[423207368,1779930640000,-154.17293507,0.00019428,2]
[423207405,1779930640000,-1728.02,0.00021796,2]
[423207339,1779930640000,-151.0,0.00019428,2]
[423207340,1779930640000,-1428.38747117,0.00019428,2]
[423207341,1779930640000,-151.0,0.00019428,2]
[423207343,1779930640000,-151.0,0.00019428,2]
[423207353,1779930640000,-500.0,0.00019428,2]
[423207342,1779930640000,-151.0,0.00019428,2]
[423207344,1779930640000,-576.41889043,0.00019428,2]
[423207352,1779930640000,-2080.17592889,0.00019428,2]
[423207351,1779930640000,-151.0,0.00019428,2]
[423207350,1779930640000,-151.0,0.00019428,2]
[423207345,1779930640000,-151.0,0.00019428,2]
[423207346,1779930640000,-500.0,0.00019428,2]
[423207366,1779930640000,-151.0,0.00019428,2]
[423207349,1779930640000,-500.0,0.00019428,2]
[423207348,1779930640000,-151.0,0.00019428,2]
[423207355,1779930640000,-151.0,0.00019428,2]
[423207354,1779930640000,-151.0,0.00019428,2]
[423207357,1779930640000,-151.0,0.00019428,2]
[423207359,1779930640000,-151.0,0.00019428,2]
[423207358,1779930640000,-151.0,0.00019428,2]
[423207356,1779930640000,-500.0,0.00019428,2]
[423207363,1779930640000,-151.0,0.00019428,2]
[423207362,1779930640000,-151.0,0.00019428,2]
[423207361,1779930640000,-151.0,0.00019428,2]
[423207364,1779930640000,-151.0,0.00019428,2]
[423207360,1779930640000,-151.0,0.00019428,2]
[423207365,1779930640000,-151.0,0.00019428,2]
[423207347,1779930640000,-151.0,0.00019428,2]
[423207408,1779930640000,-450.0,0.00022,2]
[423207335,1779930640000,-264.04644026,0.00019428,2]
[423207404,1779930640000,-2405.55389863,0.0002162,2]
[423207448,1779930640000,-88320.63893812,0.00025,2]
[423207439,1779930640000,-520.0,0.00024,2]
[423207446,1779930640000,-186.29,0.00024658,2]
[423207442,1779930640000,-151.0,0.00024324,2]
[423207445,1779930640000,-186.24,0.00024658,2]
[423207441,1779930640000,-284.0,0.00024,2]
[423207444,1779930640000,-1000.0,0.00024658,2]
[423207440,1779930640000,-186.0,0.00024,2]
[423207449,1779930640000,-1353.8314279,0.00025,4]
[423207450,1779930640000,-197.97,0.00025,2]
[423207460,1779930640000,-507.0,0.00025082,2]
[423207451,1779930640000,-197.97,0.00025,2]
[423207461,1779930640000,-1225.0,0.00025336,2]
[423207443,1779930640000,-362.05,0.00024658,2]
[423207458,1779930640000,-197.97,0.00025,2]
[423207459,1779930640000,-197.97,0.00025,2]
[423207455,1779930640000,-197.97,0.00025,2]
[423207457,1779930640000,-197.97,0.00025,2]
[423207456,1779930640000,-197.97,0.00025,2]
[423207453,1779930640000,-197.97,0.00025,2]
[423207452,1779930640000,-197.97,0.00025,2]
[423207469,1779930640000,-928.0,0.00025918,2]
[423207466,1779930640000,-150.0,0.00025918,2]
[423207465,1779930640000,-500.0,0.00025826,2]
[423207464,1779930640000,-3637.0,0.0002567,2]
[423207463,1779930640000,-931.0,0.0002567,2]
[423207468,1779930640000,-150.0,0.00025918,2]
[423207467,1779930640000,-150.0,0.00025918,2]
[423207454,1779930640000,-197.97,0.00025,2]
[423207447,1779930640000,-21777.00392127,0.00025,2]
[423207462,1779930640000,-10601.97183892,0.000256,2]
[423207438,1779930640000,-500.0,0.00024,2]
[423207436,1779930640000,-282.0,0.00023,2]
[423207407,1779930640000,-210629.3979036,0.00022,4]
[423207410,1779930640000,-180.0,0.00022,2]
[423207411,1779930640000,-282.0,0.00022,2]
[423207412,1779930640000,-5958.86,0.00022,2]
[423207422,1779930640000,-222.93878577,0.00022716,2]
[423207421,1779930640000,-3637.0,0.0002267,2]
[423207413,1779930640000,-209.40437684,0.00022168,2]
[423207414,1779930640000,-509.25323439,0.00022168,2]
[423207416,1779930640000,-164.03,0.000222,7]
[423207415,1779930640000,-1422.69934355,0.00022168,2]
[423207418,1779930640000,-1225.0,0.00022336,2]
[423207420,1779930640000,-1013.648,0.0002267,2]
[423207417,1779930640000,-267.86,0.00022278,2]
[423207409,1779930640000,-507.0,0.00022,2]
[423207423,1779930640000,-150.383,0.00022918,2]
[423207419,1779930640000,-151.0,0.00022353,2]
[423207437,1779930640000,-166.92,0.00023887,2]
[423207427,1779930640000,-167.187,0.00022918,2]
[423207426,1779930640000,-150.0,0.00022918,2]
[423207424,1779930640000,-289.487,0.00022918,2]
[423207435,1779930640000,-180.0,0.00023,2]
[423207428,1779930640000,-150.124,0.00022918,2]
[423207432,1779930640000,-1272.0,0.00022918,2]
[423207425,1779930640000,-150.0,0.00022918,2]
[423207434,1779930640000,-507.0,0.00023,2]
[423207429,1779930640000,-150.0,0.00022918,2]
[423207433,1779930640000,-2386.97438766,0.00023,20]
[423207431,1779930640000,-525.0,0.00022918,2]
[423207430,1779930640000,-928.0,0.00022918,2]
[423207502,1779930641000,-165.22,0.0002755,30]
[423207509,1779930641000,-161.25,0.00027912,7]
[423207505,1779930641000,-161.25,0.0002755,30]
[423207500,1779930641000,-150.12,0.0002755,30]
[423207510,1779930641000,-600.0,0.00028,2]
[423207511,1779930641000,-150.12,0.00028033,7]
[423207508,1779930641000,-161.32,0.00027912,7]
[423207506,1779930641000,-165.34,0.0002755,30]
[423207507,1779930641000,-520.72,0.00027679,7]
[423207513,1779930641000,-213.0,0.00028082,2]
[423207516,1779930641000,-151.0,0.00028267,2]
[423207515,1779930641000,-356.28556433,0.00028082,2]
[423207524,1779930641000,-150.0,0.00028855,2]
[423207517,1779930641000,-161.32,0.00028275,2]
[423207518,1779930641000,-161.25,0.00028275,2]
[423207520,1779930641000,-507.0,0.00028515,5]
[423207526,1779930641000,-525.0,0.00028918,2]
[423207504,1779930641000,-165.4,0.0002755,30]
[423207519,1779930641000,-533.7,0.00028343,7]
[423207525,1779930641000,-232.08,0.00028918,2]
[423207523,1779930641000,-1000.0,0.00028855,120]
[423207522,1779930641000,-3637.0,0.0002867,2]
[423207521,1779930641000,-150.12,0.00028516,2]
[423207528,1779930641000,-167.16450667,0.00028971,2]
[423207530,1779930641000,-10000.0,0.00029,2]
[423207539,1779930641000,-150.12,0.00029,2]
[423207514,1779930641000,-302.46,0.00028082,2]
[423207512,1779930641000,-150.0,0.00028082,2]
[423207495,1779930641000,-300.0,0.00027397,2]
[423207498,1779930641000,-150.0,0.00027521,2]
[423207527,1779930641000,-483.0,0.00028961,10]
[423207472,1779930641000,-239.5193129,0.0002597,2]
[423207474,1779930641000,-500.0,0.00026,2]
[423207471,1779930641000,-1272.0,0.00025918,2]
[423207470,1779930641000,-525.0,0.00025918,2]
[423207473,1779930641000,-550.0,0.00026,2]
[423207475,1779930641000,-332.0,0.000261,2]
[423207478,1779930641000,-507.0,0.00026226,3]
[423207479,1779930641000,-151.0,0.00026296,2]
[423207476,1779930641000,-612.0,0.000261,2]
[423207477,1779930641000,-153.0,0.000261,2]
[423207486,1779930641000,-536.83,0.00026873,7]
[423207480,1779930641000,-27908.7313544,0.000264,2]
[423207482,1779930641000,-178.0,0.00026695,2]
[423207484,1779930641000,-518.63,0.00026797,7]
[423207485,1779930641000,-164.03,0.000268,7]
[423207483,1779930641000,-267.86,0.00026716,2]
[423207488,1779930641000,-215.46156935,0.00027,7]
[423207494,1779930641000,-362.05,0.00027397,2]
[423207492,1779930641000,-8253.85444385,0.0002739,2]
[423207493,1779930641000,-1500.0,0.00027397,2]
[423207496,1779930641000,-161.69,0.000274,14]
[423207487,1779930641000,-215.46156935,0.00027,7]
[423207497,1779930641000,-550.21,0.00027517,7]
[423207489,1779930641000,-3291.398249,0.00027,2]
[423207490,1779930641000,-507.0,0.0002737,4]
[423207491,1779930641000,-4178.03504048,0.0002739,2]
[423207503,1779930641000,-161.32,0.0002755,30]
[423207481,1779930641000,-500.0,0.000266,2]
[423207538,1779930641000,-201.0,0.00029,2]
[423207529,1779930641000,-172.71,0.00029,2]
[423207569,1779930641000,-200.0,0.0003,2]
[423207570,1779930641000,-200.0,0.0003,2]
[423207571,1779930641000,-200.0,0.0003,2]
[423207578,1779930641000,-418.54828766,0.00030137,2]
[423207576,1779930641000,-200.0,0.00030137,2]
[423207574,1779930641000,-164.03,0.000301,7]
[423207577,1779930641000,-275.19,0.00030137,2]
[423207572,1779930641000,-200.0,0.0003,2]
[423207573,1779930641000,-225.85033134,0.0003007,2]
[423207575,1779930641000,-362.05,0.00030137,2]
[423207584,1779930641000,-282.0,0.0003088,30]
[423207588,1779930641000,-451.70066269,0.00030965,2]
[423207589,1779930641000,-200.0,0.00031096,2]
[423207586,1779930641000,-507.0,0.00030884,30]
[423207587,1779930641000,-219.84971549,0.00030965,2]
[423207579,1779930641000,-151.0,0.00030239,2]
[423207581,1779930641000,-154.0,0.0003088,30]
[423207583,1779930641000,-153.0,0.0003088,30]
[423207582,1779930641000,-180.0,0.0003088,30]
[423207580,1779930641000,-507.0,0.00030803,8]
[423207594,1779930641000,-184.8778881,0.0003157,2]
[423207590,1779930641000,-267.86,0.00031155,120]
[423207595,1779930641000,-167.16450667,0.00031578,2]
[423207591,1779930641000,-20226.63074769,0.0003143,4]
[423207593,1779930641000,-677.55099403,0.00031562,2]
[423207592,1779930641000,-439.69943098,0.00031562,2]
[423207533,1779930641000,-1379.0,0.00029,2]
[423207561,1779930641000,-507.0,0.00029884,30]
[423207565,1779930641000,-1003.8061568,0.00029888,2]
[423207585,1779930641000,-235.0,0.0003088,30]
[423207560,1779930641000,-161.0,0.00029884,30]
[423207531,1779930641000,-156.0015632,0.00029,2]
[423207566,1779930641000,-5413.3531332,0.000299,2]
[423207537,1779930641000,-10000.0,0.00029,2]
[423207535,1779930641000,-157.04,0.00029,2]
[423207532,1779930641000,-5115.38,0.00029,2]
[423207534,1779930641000,-7781.13057353,0.00029,2]
[423207536,1779930641000,-163.59,0.00029,2]
[423207540,1779930641000,-247.63500857,0.00029161,2]
[423207543,1779930641000,-1000.0,0.000297,7]
[423207542,1779930641000,-507.0,0.00029659,6]
[423207544,1779930641000,-1000.0,0.00029759,2]
[423207545,1779930641000,-1000.0,0.00029759,2]
[423207548,1779930641000,-1000.0,0.00029759,2]
[423207551,1779930641000,-1000.0,0.00029759,2]
[423207541,1779930641000,-1015.58463994,0.00029402,7]
[423207563,1779930641000,-1790.4828368,0.00029888,2]
[423207562,1779930641000,-168.0,0.00029884,30]
[423207553,1779930641000,-154.0,0.0002988,30]
[423207557,1779930641000,-282.0,0.0002988,30]
[423207568,1779930641000,-150.0,0.0003,15]
[423207564,1779930641000,-3110.0247292,0.00029888,2]
[423207567,1779930641000,-5674.47349881,0.0003,2]
[423207558,1779930641000,-157.0,0.0002988,30]
[423207556,1779930641000,-153.0,0.0002988,30]
[423207546,1779930641000,-1000.0,0.00029759,2]
[423207554,1779930641000,-180.0,0.0002988,30]
[423207555,1779930641000,-159.0,0.0002988,30]
[423207559,1779930641000,-235.0,0.0002988,30]
[423207632,1779930642000,-215.46156935,0.00034,7]
[423207636,1779930642000,-507.0,0.00034235,11]
[423207637,1779930642000,-2000.0,0.00034247,30]
[423207635,1779930642000,-167.16450666,0.00034186,2]
[423207634,1779930642000,-151.0,0.00034182,7]
[423207627,1779930642000,-180.0,0.0003388,30]
[423207638,1779930642000,-258.69407359,0.0003438,2]
[423207633,1779930642000,-1108.73627756,0.00034025,4]
[423207630,1779930642000,-235.0,0.0003388,30]
[423207631,1779930642000,-507.0,0.00033884,30]
[423207640,1779930642000,-3637.0,0.0003467,2]
[423207629,1779930642000,-282.0,0.0003388,30]
[423207650,1779930642000,-200.30328236,0.00035,120]
[423207665,1779930642000,-500.0,0.00035616,2]
[423207641,1779930642000,-1500.0,0.00034795,2]
[423207647,1779930642000,-507.0,0.00034918,2]
[423207642,1779930642000,-180.0,0.0003488,30]
[423207649,1779930642000,-150.0,0.00035,4]
[423207646,1779930642000,-507.0,0.00034884,30]
[423207652,1779930642000,-183.27090891,0.00035,2]
[423207643,1779930642000,-153.0,0.0003488,30]
[423207644,1779930642000,-282.0,0.0003488,30]
[423207651,1779930642000,-200.0,0.00035,120]
[423207645,1779930642000,-235.0,0.0003488,30]
[423207648,1779930642000,-340000.0,0.00035,4]
[423207662,1779930642000,-500.0,0.00035616,2]
[423207628,1779930642000,-153.0,0.0003388,30]
[423207639,1779930642000,-150.0,0.00034521,2]
[423207623,1779930642000,-693.9403159,0.00033239,2]
[423207601,1779930642000,-235.0,0.0003188,30]
[423207654,1779930642000,-185.0,0.00035068,15]
[423207596,1779930642000,-3637.0,0.0003167,2]
[423207597,1779930642000,-163.50760692,0.0003188,30]
[423207598,1779930642000,-180.0,0.0003188,30]
[423207600,1779930642000,-282.0,0.0003188,30]
[423207599,1779930642000,-153.0,0.0003188,30]
[423207603,1779930642000,-525.0,0.00031918,2]
[423207613,1779930642000,-150.0,0.00032877,2]
[423207602,1779930642000,-507.0,0.00031884,30]
[423207605,1779930642000,-194.09606379,0.00032,120]
[423207604,1779930642000,-507.0,0.00031947,9]
[423207606,1779930642000,-290.0,0.00032,30]
[423207609,1779930642000,-161.69,0.000325,14]
[423207611,1779930642000,-400.0,0.00032877,30]
[423207620,1779930642000,-678.4472813,0.00033,5]
[423207607,1779930642000,-200.0,0.00032055,2]
[423207608,1779930642000,-151.0,0.0003221,5]
[423207612,1779930642000,-167.44250355,0.00032877,2]
[423207615,1779930642000,-153.0,0.0003288,30]
[423207614,1779930642000,-180.0,0.0003288,30]
[423207625,1779930642000,-164.03,0.000333,7]
[423207616,1779930642000,-282.0,0.0003288,30]
[423207626,1779930642000,-1500.0,0.000334,7]
[423207622,1779930642000,-399.5107221,0.00033239,2]
[423207617,1779930642000,-235.0,0.0003288,30]
[423207621,1779930642000,-507.0,0.00033091,10]
[423207624,1779930642000,-223.9794285,0.00033239,2]
[423207618,1779930642000,-507.0,0.00032884,30]
[423207619,1779930642000,-38026.47404666,0.00033,3]
[423207610,1779930642000,-362.05,0.00032877,2]
[423207663,1779930642000,-500.0,0.00035616,2]
[423207684,1779930642000,-1000.0,0.00035616,10]
[423207653,1779930642000,-215.46156935,0.00035,30]
[423207700,1779930642000,-1000.0,0.00035616,10]
[423207694,1779930642000,-1000.0,0.00035616,10]
[423207697,1779930642000,-1000.0,0.00035616,10]
[423207695,1779930642000,-1000.0,0.00035616,10]
[423207693,1779930642000,-1000.0,0.00035616,10]
[423207698,1779930642000,-1000.0,0.00035616,10]
[423207696,1779930642000,-1000.0,0.00035616,10]
[423207699,1779930642000,-1000.0,0.00035616,10]
[423207691,1779930642000,-1000.0,0.00035616,10]
[423207701,1779930642000,-1000.0,0.00035616,10]
[423207703,1779930642000,-250.627796,0.00035634,120]
[423207713,1779930642000,-1800.09388364,0.0003578,2]
[423207702,1779930642000,-574.0,0.00035616,10]
[423207704,1779930642000,-300.99795142,0.0003578,2]
[423207710,1779930642000,-527.62572404,0.0003578,2]
[423207705,1779930642000,-300.0,0.0003578,2]
[423207709,1779930642000,-344.45437934,0.0003578,2]
[423207708,1779930642000,-1263.96825586,0.0003578,2]
[423207711,1779930642000,-865.6208675,0.0003578,2]
[423207707,1779930642000,-300.0,0.0003578,2]
[423207706,1779930642000,-300.0,0.0003578,2]
[423207712,1779930642000,-950.32029804,0.0003578,2]
[423207714,1779930642000,-1148.83589152,0.0003578,2]
[423207715,1779930642000,-310.41151265,0.0003578,2]
[423207717,1779930642000,-300.0,0.0003578,2]
[423207718,1779930642000,-464.48677942,0.0003578,2]
[423207664,1779930642000,-500.0,0.00035616,2]
[423207692,1779930642000,-1000.0,0.00035616,10]
[423207690,1779930642000,-1000.0,0.00035616,10]
[423207716,1779930642000,-594.79850986,0.0003578,2]
[423207688,1779930642000,-1000.0,0.00035616,10]
[423207656,1779930642000,-267.86,0.00035593,120]
[423207658,1779930642000,-157.56,0.00035616,60]
[423207660,1779930642000,-500.0,0.00035616,2]
[423207657,1779930642000,-223.0,0.00035616,60]
[423207655,1779930642000,-507.0,0.00035379,12]
[423207661,1779930642000,-500.0,0.00035616,2]
[423207659,1779930642000,-500.0,0.00035616,2]
[423207667,1779930642000,-500.0,0.00035616,2]
[423207686,1779930642000,-1000.0,0.00035616,10]
[423207666,1779930642000,-500.0,0.00035616,2]
[423207672,1779930642000,-1000.0,0.00035616,10]
[423207669,1779930642000,-187.08640279,0.00035616,2]
[423207668,1779930642000,-500.0,0.00035616,2]
[423207673,1779930642000,-1000.0,0.00035616,10]
[423207677,1779930642000,-1000.0,0.00035616,10]
[423207674,1779930642000,-362.05,0.00035616,2]
[423207680,1779930642000,-1000.0,0.00035616,10]
[423207671,1779930642000,-1000.0,0.00035616,10]
[423207682,1779930642000,-1000.0,0.00035616,10]
[423207681,1779930642000,-1000.0,0.00035616,10]
[423207687,1779930642000,-1000.0,0.00035616,10]
[423207683,1779930642000,-1000.0,0.00035616,10]
[423207678,1779930642000,-1000.0,0.00035616,10]
[423207679,1779930642000,-1000.0,0.00035616,10]
[423207689,1779930642000,-1000.0,0.00035616,10]
[423207676,1779930642000,-1000.0,0.00035616,10]
[423207670,1779930642000,-150.0,0.00035616,2]
[423207675,1779930642000,-1000.0,0.00035616,10]
[423207685,1779930642000,-1000.0,0.00035616,10]
[423207756,1779930643000,-1096.2926835,0.0003578,2]
[423207764,1779930643000,-605.31118564,0.0003578,2]
[423207773,1779930643000,-1263.96825586,0.0003578,2]
[423207755,1779930643000,-310.28230408,0.0003578,2]
[423207754,1779930643000,-484.76763572,0.0003578,2]
[423207746,1779930643000,-1800.09388364,0.0003578,2]
[423207759,1779930643000,-300.0,0.0003578,2]
[423207758,1779930643000,-300.0,0.0003578,2]
[423207757,1779930643000,-300.0,0.0003578,2]
[423207753,1779930643000,-300.0,0.0003578,2]
[423207752,1779930643000,-452.52893397,0.0003578,2]
[423207770,1779930643000,-300.0,0.0003578,2]
[423207792,1779930643000,-484.76763572,0.0003578,2]
[423207763,1779930643000,-493.38669858,0.0003578,2]
[423207771,1779930643000,-300.99795142,0.0003578,2]
[423207766,1779930643000,-528.48327171,0.0003578,2]
[423207761,1779930643000,-300.0,0.0003578,2]
[423207769,1779930643000,-302.21937029,0.0003578,2]
[423207765,1779930643000,-300.0,0.0003578,2]
[423207768,1779930643000,-727.07827244,0.0003578,2]
[423207767,1779930643000,-1068.40163352,0.0003578,2]
[423207786,1779930643000,-310.02493426,0.0003578,2]
[423207775,1779930643000,-527.62572404,0.0003578,2]
[423207787,1779930643000,-594.79850986,0.0003578,2]
[423207789,1779930643000,-397.81566495,0.0003578,2]
[423207748,1779930643000,-310.02493426,0.0003578,2]
[423207772,1779930643000,-300.0,0.0003578,2]
[423207749,1779930643000,-594.79850986,0.0003578,2]
[423207729,1779930643000,-493.38669858,0.0003578,2]
[423207747,1779930643000,-1148.83589152,0.0003578,2]
[423207791,1779930643000,-300.0,0.0003578,2]
[423207719,1779930643000,-578.28315025,0.0003578,2]
[423207725,1779930643000,-1096.2926835,0.0003578,2]
[423207724,1779930643000,-300.0,0.0003578,2]
[423207726,1779930643000,-300.0,0.0003578,2]
[423207722,1779930643000,-310.28230408,0.0003578,2]
[423207720,1779930643000,-452.52893397,0.0003578,2]
[423207721,1779930643000,-300.0,0.0003578,2]
[423207738,1779930643000,-300.0,0.0003578,2]
[423207728,1779930643000,-300.0,0.0003578,2]
[423207727,1779930643000,-300.0,0.0003578,2]
[423207737,1779930643000,-300.99795142,0.0003578,2]
[423207735,1779930643000,-302.21937029,0.0003578,2]
[423207734,1779930643000,-727.07827244,0.0003578,2]
[423207736,1779930643000,-300.0,0.0003578,2]
[423207733,1779930643000,-1068.40163352,0.0003578,2]
[423207732,1779930643000,-528.48327171,0.0003578,2]
[423207731,1779930643000,-300.0,0.0003578,2]
[423207730,1779930643000,-605.31118564,0.0003578,2]
[423207739,1779930643000,-300.0,0.0003578,2]
[423207740,1779930643000,-474.76649744,0.0003578,2]
[423207744,1779930643000,-865.6208675,0.0003578,2]
[423207743,1779930643000,-527.62572404,0.0003578,2]
[423207750,1779930643000,-485.92581764,0.0003578,2]
[423207742,1779930643000,-344.45437934,0.0003578,2]
[423207741,1779930643000,-1263.96825586,0.0003578,2]
[423207751,1779930643000,-464.48677942,0.0003578,2]
[423207745,1779930643000,-950.32029804,0.0003578,2]
[423207788,1779930643000,-464.48677942,0.0003578,2]
[423207723,1779930643000,-300.0,0.0003578,2]
[423207790,1779930643000,-452.52893397,0.0003578,2]
[423207827,1779930643000,-528.48327171,0.0003578,2]
[423207829,1779930643000,-727.07827244,0.0003578,2]
[423207819,1779930643000,-647.1043628,0.0003578,2]
[423207828,1779930643000,-1068.40163352,0.0003578,2]
[423207821,1779930643000,-1096.2926835,0.0003578,2]
[423207830,1779930643000,-302.21937029,0.0003578,2]
[423207822,1779930643000,-565.10477641,0.0003578,2]
[423207826,1779930643000,-300.0,0.0003578,2]
[423207823,1779930643000,-300.0,0.0003578,2]
[423207825,1779930643000,-605.31118564,0.0003578,2]
[423207824,1779930643000,-493.38669858,0.0003578,2]
[423207832,1779930643000,-300.99795142,0.0003578,2]
[423207843,1779930643000,-310.60499178,0.0003578,2]
[423207842,1779930643000,-453.06978309,0.0003578,2]
[423207831,1779930643000,-300.0,0.0003578,2]
[423207836,1779930643000,-865.6208675,0.0003578,2]
[423207835,1779930643000,-527.62572404,0.0003578,2]
[423207837,1779930643000,-950.32029804,0.0003578,2]
[423207840,1779930643000,-594.79850986,0.0003578,2]
[423207833,1779930643000,-1263.96825586,0.0003578,2]
[423207839,1779930643000,-1148.83589152,0.0003578,2]
[423207841,1779930643000,-464.48677942,0.0003578,2]
[423207845,1779930643000,-493.38669858,0.0003578,2]
[423207838,1779930643000,-1800.09388364,0.0003578,2]
[423207834,1779930643000,-344.45437934,0.0003578,2]
[423207846,1779930643000,-605.31118564,0.0003578,2]
[423207847,1779930643000,-300.0,0.0003578,2]
[423207820,1779930643000,-310.28230408,0.0003578,2]
[423207818,1779930643000,-328.18031927,0.0003578,2]
[423207844,1779930643000,-463.0278639,0.0003578,2]
[423207815,1779930643000,-594.79850986,0.0003578,2]
[423207814,1779930643000,-310.02493426,0.0003578,2]
[423207777,1779930643000,-865.6208675,0.0003578,2]
[423207779,1779930643000,-950.32029804,0.0003578,2]
[423207784,1779930643000,-1148.83589152,0.0003578,2]
[423207782,1779930643000,-1800.09388364,0.0003578,2]
[423207793,1779930643000,-310.28230408,0.0003578,2]
[423207797,1779930643000,-493.38669858,0.0003578,2]
[423207795,1779930643000,-300.0,0.0003578,2]
[423207796,1779930643000,-300.0,0.0003578,2]
[423207794,1779930643000,-1096.2926835,0.0003578,2]
[423207803,1779930643000,-302.21937029,0.0003578,2]
[423207804,1779930643000,-300.0,0.0003578,2]